bitfinex/quotes_ETHUSD_20250803
["timestamp","ask_amount","ask_price","bid_price","bid_amount"]
[1754188518263,11.6790838,3442.6,3442.5,0.002]
[1754188522578,11.6639838,3442.6,3442.5,0.002]
[1754188523076,15.00500931,3442.6,3442.5,0.002]
[1754188525136,11.47570931,3442.6,3442.5,0.002]
[1754188525547,2.89130931,3442.6,3442.5,0.002]
[1754188525752,6.986,3442.8,3442.5,0.6707]
[1754188525948,4.51330871,3442.7,3442.6,0.4515]
[1754188526177,4.51330871,3442.7,3442.5,0.002]
[1754188526377,4.51330871,3442.7,3442.5,0.4535]
[1754188526580,1.14993087,3442.6,3442.5,0.4535]
[1754188527257,1.14993087,3442.6,3442.5,0.002]
[1754188527451,1.18624063,3442.6,3442.5,0.4535]
[1754188528380,1.33184063,3442.6,3442.5,0.4535]
[1754188529264,1.33184063,3442.6,3442.5,0.002]
[1754188530547,1.33184063,3442.6,3442.5,0.4535]
[1754188531274,5.80784063,3442.6,3442.5,0.4535]
[1754188531474,1.29553087,3442.6,3442.5,0.4535]
[1754188531784,4.6216,3442.6,3442.5,0.4535]
[1754188533178,4.65790976,3442.6,3442.5,0.002]
[1754188534909,5.76500976,3442.6,3442.5,0.002]
[1754188535105,9.189,3442.6,3442.5,0.002]
[1754188535472,8.7287,3442.6,3442.5,0.002]
[1754188535811,10.3462,3442.6,3442.5,0.002]
[1754188536711,10.8065,3442.6,3442.5,0.002]
[1754188540613,10.3462,3442.6,3442.5,0.002]
[1754188541410,5.8702,3442.6,3442.5,0.002]
[1754188541616,10.3442,3442.6,3442.5,0.002]
[1754188542287,5.8702,3442.6,3442.5,0.002]
[1754188542489,0.1456,3442.6,3442.5,0.6524]
[1754188542696,4.6196,3442.6,3442.5,0.6524]
[1754188545322,0.1456,3442.6,3442.5,0.6524]
[1754188545509,4.6196,3442.6,3442.5,0.6524]
[1754188545704,0.1456,3442.6,3442.5,0.6524]
[1754188546010,4.474,3442.6,3442.5,0.6524]
[1754188548385,0.1456,3442.8,3442.5,0.6524]
[1754188548586,0.1456,3442.8,3442.5,0.002]
[1754188548791,4.473,3442.7,3442.5,0.002]
[1754188549196,4.473,3442.7,3442.6,0.6504]
[1754188549532,0.1456,3442.8,3442.6,0.6504]
[1754188549836,4.473,3442.7,3442.5,0.002]
[1754188550534,4.473,3442.7,3442.6,0.629]
[1754188551338,4.473,3442.7,3442.6,0.84304624]
[1754188552131,4.472,3442.7,3442.6,0.84304624]
[1754188557328,4.472,3442.7,3442.6,0.64414624]
[1754188559530,0.1456,3442.8,3442.6,0.64414624]
[1754188559731,4.471,3442.7,3442.6,0.64414624]
[1754188560282,0.1456,3442.8,3442.6,0.21404624]
[1754188560453,4.471,3442.7,3442.6,0.21404624]
[1754188560623,4.471,3442.7,3442.5,0.002]
[1754188560806,4.471,3442.7,3442.5,0.4321]
[1754188561408,4.471,3442.6,3442.5,0.4321]
[1754188562551,4.471,3442.6,3442.5,0.6119]
[1754188564257,0.1456,3442.8,3442.5,0.4321]
[1754188564423,4.471,3442.6,3442.5,0.002]
[1754188565156,4.471,3442.6,3442.5,0.4321]
[1754188566952,0.1456,3442.8,3442.5,0.4321]
[1754188567156,4.47,3442.7,3442.5,0.4321]
[1754188568561,0.1456,3442.8,3442.5,0.002]
[1754188568772,4.47,3442.6,3442.5,0.002]
[1754188570162,0.001,3443.2,3442.5,0.4321]
[1754188570360,4.469,3443.1,3442.9,10.14703797]
[1754188570562,0.1466,3443.2,3442.9,10.14703797]
[1754188570769,4.469,3443.1,3442.9,10.57713797]
[1754188570938,4.469,3443.1,3442.9,11.10373797]
[1754188571341,0.001,3443.2,3442.9,10.67363797]
[1754188571537,4.469,3443.1,3443.0,0.7456]
[1754188571745,0.001,3443.2,3443.0,1.618588]
[1754188571949,0.001,3443.2,3443.1,0.6]
[1754188572150,4.47,3443.2,3443.1,0.6]
[1754188572938,4.47,3443.2,3443.1,0.4301]
[1754188572939,0.001,3443.2,3443.1,0.4301]
[1754188573159,4.47,3443.2,3443.1,0.4301]
[1754188573467,4.47,3443.2,3443.1,0.6714]
[1754188574029,4.9966,3443.2,3443.1,0.6714]
[1754188574864,4.47,3443.2,3443.1,0.6714]
[1754188575963,0.001,3443.2,3443.1,0.6714]
[1754188576145,4.469,3443.2,3443.1,1.1015]
[1754188576767,4.469,3443.2,3443.1,0.6714]
[1754188577252,0.001,3443.2,3443.1,0.6714]
[1754188577456,0.001,3443.2,3443.1,1.2714]
[1754188577767,4.469,3443.2,3443.1,1.2714]
[1754188577954,0.001,3443.2,3443.1,1.2714]
[1754188578145,4.469,3443.2,3443.1,1.2714]
[1754188578346,0.001,3443.2,3443.1,1.2714]
[1754188582176,0.001,3443.8,3443.2,0.55]
[1754188582464,0.001,3443.8,3443.5,3.0]
[1754188583172,0.001,3443.8,3443.6,0.4496]
[1754188583760,0.001,3443.8,3443.7,0.872718]
[1754188584936,0.9774,3443.8,3443.7,0.872718]
[1754188585560,0.9774,3443.8,3443.5,3.0]
[1754188585768,0.9764,3443.7,3443.6,0.872848]
[1754188586641,0.5425,3443.7,3443.6,0.872848]
[1754188588549,0.001,3443.8,3443.6,0.872848]
[1754188588744,0.001,3443.8,3443.7,0.4496]
[1754188589150,0.001,3443.8,3443.7,1.322354]
[1754188589578,0.001,3443.8,3443.7,1.482754]
[1754188591976,0.001,3443.8,3443.7,2.032754]
[1754188592177,0.001,3443.8,3443.7,2.177554]
[1754188593852,0.001,3443.8,3443.7,1.017554]
[1754188596786,0.5435,3443.8,3443.7,1.017554]
[1754188598854,0.001,3443.8,3443.7,1.017554]
[1754188599384,0.5435,3443.8,3443.7,1.017554]
[1754188599587,0.9774,3443.8,3443.7,1.017554]
[1754188600773,0.9774,3443.8,3443.7,0.1448]
[1754188603166,0.9774,3443.8,3443.6,0.1448]
[1754188603367,0.9764,3443.7,3443.6,0.1448]
[1754188604265,0.9764,3443.7,3442.7,0.75984619]
[1754188604601,0.9764,3443.6,3443.2,0.1456]
[1754188605098,0.9764,3443.5,3443.2,0.1456]
[1754188605346,0.1448,3443.7,3443.2,0.1456]
[1754188605489,0.9764,3443.4,3443.2,0.1456]
[1754188605682,0.5425,3443.3,3443.2,0.1456]
[1754188608777,0.4339,3443.5,3443.2,0.1456]
[1754188608778,0.5425,3443.5,3443.2,0.1456]
[1754188609129,0.6873,3443.7,3443.4,10.14703797]
[1754188609425,0.001,3443.8,3443.4,10.29263797]
[1754188609605,1.0099,3443.6,3443.4,10.14703797]
[1754188609808,0.4843,3443.5,3443.4,10.14703797]
[1754188610022,0.4843,3443.5,3443.4,11.01991197]
[1754188610323,0.4843,3443.5,3443.4,11.16551197]
[1754188611136,0.9517,3443.5,3443.4,11.16551197]
[1754188612387,0.9517,3443.5,3443.4,10.29263797]
[1754188613336,0.4843,3443.5,3443.4,10.29263797]
[1754188615703,0.4853,3443.8,3443.4,10.29263797]
[1754188615933,0.4843,3443.7,3443.4,10.29263797]
[1754188616135,0.001,3443.8,3443.6,0.1448]
[1754188616337,0.4684,3443.8,3443.6,0.1448]
[1754188616819,0.4843,3443.7,3443.6,0.1448]
[1754188617427,0.9517,3443.7,3443.6,0.1448]
[1754188619469,0.001,3443.8,3443.6,0.1448]
[1754188619757,0.9517,3443.7,3443.6,0.1448]
[1754188621622,0.9517,3443.7,3443.4,10.14703797]
[1754188621822,0.9517,3443.6,3443.4,10.29263797]
[1754188622020,0.9517,3443.5,3443.4,13.29263797]
[1754188622342,0.9517,3443.5,3443.4,3.1456]
[1754188622725,0.9517,3443.5,3443.4,3.0]
[1754188623657,0.9517,3443.5,3443.4,13.14703797]
[1754188623816,0.9517,3443.5,3443.4,3.0]
[1754188624360,0.4843,3443.6,3443.4,3.0]
[1754188624516,0.4843,3443.6,3443.5,10.14703797]
[1754188625240,0.001,3443.8,3443.5,10.14703797]
[1754188625758,0.9517,3443.7,3443.4,3.0]
[1754188625969,0.9517,3443.6,3443.5,0.1456]
[1754188626460,0.4843,3443.6,3443.5,0.1456]
[1754188631455,0.4853,3443.8,3443.5,0.1456]
[1754188631622,0.001,3443.8,3443.5,0.1456]
[1754188631829,0.4843,3443.7,3443.5,0.1456]
[1754188632024,0.001,3443.8,3443.6,0.445]
[1754188632231,0.001,3443.8,3443.7,17.75183797]
[1754188632479,0.001,3443.8,3443.7,17.89353797]
[1754188632678,0.001,3443.8,3443.7,18.33853797]
[1754188634155,0.001,3443.8,3443.7,21.24239138]
[1754188634564,0.001,3443.8,3443.7,18.33853797]
[1754188634934,0.001,3443.8,3443.7,18.82283797]
[1754188636469,0.001,3443.8,3443.7,21.72669138]
[1754188637457,0.001,3443.8,3443.7,18.82283797]
[1754188637634,0.001,3443.8,3443.7,18.68113797]
[1754188638465,0.001,3443.8,3443.7,21.58499138]
[1754188638671,0.001,3443.8,3443.7,21.72669138]
[1754188639752,0.001,3443.8,3443.7,22.27669138]
[1754188640338,0.001,3444.2,3443.8,3.55]
[1754188640534,0.001,3444.2,3444.1,13.14703797]
[1754188640767,0.4967,3444.7,3444.2,3.0]
[1754188640991,0.4967,3444.7,3444.6,13.14703797]
[1754188641138,0.4967,3444.7,3444.6,17.60603797]
[1754188641340,0.4967,3444.7,3444.6,17.75083797]
[1754188641568,0.4967,3444.7,3444.6,18.24753797]
[1754188641774,0.9554,3444.7,3444.6,3.6415]
[1754188641973,0.001,3444.2,3443.2,10.14703797]
[1754188642176,0.872893,3446.8,3444.0,10.14703797]
[1754188642338,0.4967,3445.5,3445.2,3.0]
[1754188642536,0.4967,3445.5,3445.2,7.6308]
[1754188642537,0.4587,3445.4,3445.2,7.6308]
[1754188642775,0.4967,3445.3,3445.2,0.1448]
[1754188642992,0.4967,3445.3,3445.2,0.4967]
[1754188643275,0.4967,3445.3,3445.1,3.0]
[1754188643276,0.9554,3445.3,3445.1,3.0]
[1754188643676,0.9554,3445.2,3445.1,3.0]
[1754188645480,0.9554,3445.2,3445.1,13.14703797]
[1754188645679,0.9554,3445.2,3445.1,0.21929619]
[1754188645983,1.1002,3445.2,3444.6,4.484]
[1754188646274,0.9554,3445.1,3444.7,0.1448]
[1754188646577,0.9554,3445.1,3444.7,3.0]
[1754188646880,0.9554,3445.0,3444.7,3.0]
[1754188647179,0.9554,3444.9,3444.7,3.0]
[1754188647475,0.1448,3445.2,3444.7,3.0]
[1754188647476,0.9554,3444.8,3444.7,3.0]
[1754188647776,0.9554,3444.8,3444.7,0.22132469]
[1754188648274,0.9554,3444.8,3444.5,7.6288]
[1754188648498,0.9554,3444.7,3444.5,7.6288]
[1754188648778,0.9554,3444.6,3444.5,7.6288]
[1754188649544,0.4587,3444.6,3444.5,7.6288]
[1754188649776,0.9554,3444.6,3444.5,7.6288]
[1754188649941,0.9554,3444.6,3444.5,3.21954783]
[1754188650348,0.9554,3444.6,3444.5,0.21954783]
[1754188650646,0.9554,3444.6,3444.4,10.14703797]
[1754188650884,0.9554,3444.5,3444.4,13.14703797]
[1754188653292,0.9554,3444.5,3444.4,0.2202457]
[1754188653492,0.9554,3444.5,3444.0,0.872726]
[1754188653793,0.9554,3444.4,3444.0,0.872726]
[1754188653944,0.001,3445.1,3443.9,10.14703797]
[1754188654152,0.9554,3444.3,3443.9,10.14703797]
[1754188654363,0.9554,3444.2,3443.9,10.14703797]
[1754188654604,0.504,3445.1,3444.0,3.0]
[1754188654800,0.9554,3445.0,3443.9,0.62127522]
[1754188654950,0.001,3445.1,3444.0,4.494]
[1754188655301,0.9554,3444.9,3444.0,4.494]
[1754188655495,0.9554,3444.8,3444.0,4.494]
[1754188655795,0.99168763,3444.7,3443.9,3.21491202]
[1754188655982,0.9554,3444.6,3443.9,3.21491202]
[1754188656354,0.9554,3444.5,3443.9,3.21491202]
[1754188656609,0.9554,3444.4,3443.9,3.21491202]
[1754188656754,0.99169184,3444.3,3443.9,0.21491202]
[1754188657112,0.9554,3444.2,3443.5,3.0]
[1754188657384,0.9554,3444.1,3443.4,14.64303797]
[1754188657603,0.55,3444.8,3443.4,10.14903797]
[1754188657934,0.9554,3444.0,3443.4,10.14903797]
[1754188658091,0.55,3444.7,3443.4,10.14903797]
[1754188658279,0.9554,3443.9,3443.4,10.14903797]
[1754188658494,0.9554,3443.8,3443.4,10.14903797]
[1754188658787,0.9554,3443.7,3443.4,10.14903797]
[1754188658995,0.4967,3443.6,3443.4,10.14903797]
[1754188659703,0.4967,3443.5,3443.4,0.22077271]
[1754188660687,0.88334151,3444.7,3443.4,0.22077271]
[1754188660896,0.4967,3443.8,3443.7,10.14703797]
[1754188661093,0.4967,3444.4,3443.7,10.14703797]
[1754188661282,0.4967,3444.4,3444.2,10.14703797]
[1754188661798,0.4587,3444.6,3444.2,10.14703797]
[1754188662013,0.001,3445.1,3444.2,10.14703797]
[1754188662222,0.4967,3444.6,3444.2,10.14703797]
[1754188662389,0.4587,3444.8,3444.2,10.14703797]
[1754188662718,0.4967,3444.7,3444.2,10.14703797]
[1754188663070,0.4967,3444.7,3444.2,11.08073797]
[1754188663302,0.4587,3445.0,3444.3,5.4257]
[1754188663303,0.4967,3445.0,3444.3,5.4257]
[1754188663883,0.1448,3444.7,3444.3,5.4257]
[1754188664304,0.1448,3444.7,3444.4,0.4568]
[1754188664510,0.1448,3444.9,3444.5,1.0785]
[1754188664673,0.1448,3444.9,3444.5,5.5695]
[1754188665508,0.1448,3444.9,3444.7,3.0]
[1754188665672,0.1448,3444.9,3444.8,7.49]
[1754188666572,0.001,3445.1,3444.9,3.0]
[1754188666773,0.001,3445.1,3445.0,14.63603797]
[1754188668210,0.001,3445.1,3445.0,15.09283797]
[1754188668380,0.001,3445.1,3445.0,15.56973797]
[1754188668780,0.001,3445.1,3445.0,15.09283797]
[1754188668981,0.001,3445.1,3445.0,14.63603797]
[1754188670712,0.001,3445.1,3445.0,10.14703797]
[1754188671016,0.001,3445.1,3445.0,14.63403797]
[1754188672711,0.001,3445.1,3445.0,15.26093797]
[1754188673918,0.4831,3445.1,3445.0,14.63003797]
[1754188674721,0.001,3445.1,3445.0,14.63003797]
[1754188675089,0.001,3445.1,3445.0,10.14703797]
[1754188675290,0.001,3445.1,3445.0,14.62703797]
[1754188677411,0.9551,3445.1,3445.0,4.48]
[1754188677614,1.0999,3445.1,3445.0,4.478]
[1754188677926,1.0999,3445.1,3444.5,0.1448]
[1754188678123,0.1448,3444.8,3444.6,4.478]
[1754188678420,0.4821,3444.7,3444.6,4.478]
[1754188678624,0.1448,3444.8,3444.6,4.478]
[1754188680109,0.1448,3444.8,3444.7,10.14703797]
[1754188682015,0.1448,3444.8,3444.7,14.62303797]
[1754188683094,0.1448,3444.8,3444.7,10.14703797]
[1754188683293,0.1448,3444.8,3444.7,14.62203797]
[1754188683493,0.6269,3444.8,3444.7,14.62203797]
[1754188683695,1.0989,3444.8,3444.7,4.475]
[1754188684024,0.1448,3444.8,3444.7,4.475]
[1754188684249,0.6269,3444.8,3444.7,4.475]
[1754188684428,0.6269,3444.8,3444.2,0.1448]
[1754188684732,1.0989,3444.8,3444.4,3.0]
[1754188684909,0.6168,3444.8,3444.5,4.475]
[1754188685226,0.9541,3444.7,3444.1,4.476]
[1754188685430,0.1448,3444.5,3444.2,3.0]
[1754188685808,0.4821,3444.4,3444.2,3.0]
[1754188686127,0.6168,3444.5,3444.2,3.0]
[1754188686344,0.4821,3444.4,3444.1,7.477]
[1754188686629,0.1448,3444.5,3444.1,7.477]
[1754188686801,0.1448,3444.5,3444.4,10.14703797]
[1754188687006,0.6269,3444.5,3444.4,10.14703797]
[1754188688007,0.1448,3444.5,3444.4,10.14703797]
[1754188688212,0.4821,3445.0,3444.4,10.14703797]
[1754188688443,0.1448,3444.8,3444.4,10.14703797]
[1754188688825,0.6269,3444.8,3444.4,10.14703797]
[1754188689011,0.6269,3444.8,3444.4,14.62103797]
[1754188689545,0.6269,3444.8,3444.4,15.08473797]
[1754188690043,0.1448,3444.8,3444.4,14.62103797]
[1754188690243,0.001,3445.1,3444.7,0.1448]
[1754188690555,0.001,3445.1,3444.9,13.29183797]
[1754188690759,0.001,3445.1,3445.0,7.482]
[1754188690931,0.001,3445.1,3445.0,8.4291]
[1754188691814,0.001,3445.1,3445.0,38.613595]
[1754188693447,0.001,3445.1,3445.0,39.486136]
[1754188693828,0.001,3445.1,3445.0,39.002736]
[1754188694432,0.001,3445.1,3445.0,38.539036]
[1754188694830,0.001,3445.1,3445.0,34.057036]
[1754188695154,0.4831,3445.1,3445.0,37.662495]
[1754188695338,0.001,3445.1,3445.0,37.662495]
[1754188695739,0.4831,3445.1,3445.0,33.184495]
[1754188695939,0.001,3445.1,3445.0,37.662495]
[1754188696753,0.4831,3445.1,3445.0,33.184495]
[1754188696933,0.4831,3445.1,3445.0,37.662495]
[1754188697234,0.4831,3445.1,3445.0,33.184495]
[1754188697435,0.4831,3445.1,3445.0,37.661495]
[1754188698347,0.001,3445.1,3445.0,37.661495]
[1754188698747,0.001,3445.1,3445.0,33.184495]
[1754188698949,0.001,3445.1,3445.0,37.661495]
[1754188699850,0.4937,3445.1,3445.0,38.143595]
[1754188701456,0.001,3445.1,3445.0,38.143595]
[1754188702658,0.4937,3445.1,3445.0,38.143595]
[1754188703072,0.4937,3445.1,3445.0,38.138595]
[1754188703279,0.001,3445.1,3445.0,38.138595]
[1754188705681,0.001,3445.1,3445.0,33.666595]
[1754188705867,0.001,3445.1,3445.0,38.136595]
[1754188706073,0.001,3445.1,3445.0,39.072295]
[1754188706647,0.001,3445.1,3445.0,39.217095]
[1754188707895,0.001,3445.1,3445.0,33.811395]
[1754188708070,0.4937,3445.1,3445.0,38.280395]
[1754188708972,0.001,3445.1,3445.0,38.280395]
[1754188710934,0.001,3445.1,3445.0,38.710795]
[1754188711137,0.001,3445.1,3445.0,38.280395]
[1754188711522,0.001,3445.1,3445.0,33.811395]
[1754188711724,0.001,3445.1,3445.0,38.279395]
[1754188711924,0.001,3445.1,3445.0,38.278395]
[1754188713823,0.4937,3445.1,3445.0,38.277395]
[1754188714002,0.9324,3445.1,3445.0,38.132595]
[1754188714205,0.9324,3445.1,3445.0,33.666595]
[1754188714642,0.9324,3445.1,3445.0,33.184495]
[1754188720009,0.8824,3445.1,3445.0,33.184495]
[1754188725761,0.1448,3445.2,3445.1,3.0]
[1754188725931,0.4927,3445.3,3445.1,3.0]
[1754188726135,0.4397,3445.5,3445.1,3.0]
[1754188726462,0.4927,3445.2,3445.1,3.0]
[1754188726666,0.4387,3445.4,3445.1,3.0]
[1754188726828,0.4927,3445.3,3445.1,3.0]
[1754188729631,0.4387,3445.4,3445.1,3.0]
[1754188729832,0.454,3445.2,3445.1,3.0]
[1754188731074,0.454,3445.2,3445.0,30.184495]
[1754188731256,1.50118341,3445.1,3445.0,30.184495]
[1754188731435,1.14631834,3445.1,3445.0,30.184495]
[1754188731635,2.06121834,3445.1,3445.0,30.184495]
[1754188735876,1.29111834,3445.1,3445.0,30.184495]
[1754188736062,6.0717,3445.1,3445.0,30.184495]
[1754188738078,5.6108,3445.1,3445.0,30.184495]
[1754188739077,6.0717,3445.1,3445.0,30.184495]
[1754188739580,0.55,3445.0,3444.6,0.002]
[1754188739882,0.1448,3444.7,3444.6,0.002]
[1754188740578,1.0597,3444.7,3444.6,0.002]
[1754188740821,1.22067,3444.7,3444.6,0.002]
[1754188741799,5.68367,3444.7,3444.6,0.002]
[1754188742488,5.22277,3444.7,3444.6,0.002]
[1754188744510,4.76877,3444.7,3444.6,0.002]
[1754188745398,0.30577,3444.7,3444.6,0.002]
[1754188745618,4.6078,3444.7,3444.6,0.9453]
[1754188745820,4.6078,3444.7,3444.6,0.4741]
[1754188746140,4.6078,3444.7,3444.6,0.002]
[1754188747101,0.5988,3444.7,3444.6,0.002]
[1754188747427,5.0618,3444.7,3444.6,0.002]
[1754188747938,6.12997,3444.7,3444.6,0.002]
[1754188749839,6.12997,3444.7,3444.6,30.19]
[1754188750005,5.66907,3444.7,3444.6,30.19]
[1754188751238,4.6078,3444.7,3444.6,30.19]
[1754188751443,4.6078,3444.7,3444.6,31.1333]
[1754188752732,4.6078,3444.7,3444.6,30.19]
[1754188753234,0.1448,3444.7,3444.6,30.19]
[1754188753452,4.6068,3444.7,3444.6,30.19]
[1754188754008,4.6068,3444.7,3444.6,30.6621]
[1754188754420,4.6068,3444.7,3444.6,30.19]
[1754188755131,5.0608,3444.7,3444.6,30.19]
[1754188758355,4.6068,3444.7,3444.6,30.19]
[1754188760453,4.6068,3444.7,3444.6,31.062822]
[1754188763421,5.1038,3444.7,3444.6,31.062822]
[1754188763620,5.1038,3444.7,3444.6,30.19]
[1754188765365,0.1448,3444.7,3444.6,32.006225]
[1754188765548,4.6058,3444.7,3444.6,32.006225]
[1754188766118,0.1448,3444.7,3444.6,32.006225]
[1754188766340,0.1448,3444.7,3444.6,35.006225]
[1754188766341,4.461,3444.7,3444.6,35.006225]
[1754188767124,0.1448,3444.8,3444.6,35.006225]
[1754188767458,4.6058,3444.8,3444.7,0.9434]
[1754188767645,4.6058,3444.8,3444.6,34.062825]
[1754188767845,4.6058,3444.8,3444.7,0.9434]
[1754188768254,0.001,3445.5,3444.7,0.9434]
[1754188768561,4.461,3445.4,3445.1,10.14703797]
[1754188768771,0.1448,3445.2,3445.1,10.14703797]
[1754188769060,4.6058,3445.2,3445.1,10.14703797]
[1754188769567,4.6058,3445.2,3444.9,0.9434]
[1754188770065,0.1448,3445.2,3445.0,0.9434]
[1754188770253,4.461,3445.1,3444.7,13.14703797]
[1754188770846,4.461,3445.1,3444.8,0.9434]
[1754188771041,4.461,3445.1,3444.7,13.14703797]
[1754188771360,4.461,3445.1,3444.9,0.4502]
[1754188771564,0.9622,3445.0,3444.6,0.874825]
[1754188771766,0.1448,3444.8,3444.6,0.874825]
[1754188772062,4.46,3444.7,3444.6,0.002]
[1754188772263,4.46,3444.7,3444.6,0.874797]
[1754188772446,4.46,3444.7,3444.6,0.002]
[1754188774130,4.957,3444.7,3444.6,0.002]
[1754188774331,5.4222,3444.7,3444.6,0.002]
[1754188774569,5.9789,3444.7,3444.6,0.002]
[1754188780569,1.5189,3444.7,3444.6,0.002]
[1754188780777,5.4222,3444.7,3444.6,0.002]
[1754188780995,0.001,3445.5,3444.6,0.002]
[1754188781140,0.001,3445.5,3445.2,10.14703797]
[1754188781343,4.46,3445.4,3445.2,11.09043797]
[1754188781544,4.46,3445.4,3445.2,10.59723797]
[1754188782656,4.46,3445.4,3445.2,10.14703797]
[1754188785555,6.21126993,3445.4,3445.1,0.87263]
[1754188785755,0.9622,3445.3,3444.6,0.002]
[1754188785962,5.009,3445.2,3444.6,0.874759]
[1754188786287,0.55,3445.0,3444.6,0.002]
[1754188786464,4.459,3444.9,3444.6,0.002]
[1754188786665,5.4212,3444.9,3444.6,0.002]
[1754188786986,0.9622,3444.8,3444.6,0.002]
[1754188787149,4.459,3444.7,3444.6,0.002]
[1754188788585,5.4212,3444.7,3444.6,0.002]
[1754188788788,6.01832,3444.7,3444.6,0.002]
[1754188790561,4.956,3444.7,3444.6,0.402]
[1754188790766,4.459,3444.7,3444.6,0.402]
[1754188790972,4.6038,3444.7,3444.6,0.402]
[1754188792294,5.0559,3444.7,3444.6,0.402]
[1754188792605,6.04869,3444.7,3444.6,0.402]
[1754188801010,4.6038,3444.7,3444.6,0.402]
[1754188801726,5.0559,3444.7,3444.6,0.402]
[1754188802496,4.6038,3444.7,3444.6,0.402]
[1754188803231,0.1448,3444.7,3444.6,0.402]
[1754188803437,4.6028,3444.7,3444.6,0.402]
[1754188804301,0.1448,3444.7,3444.6,0.402]
[1754188804523,5.0549,3444.7,3444.6,0.402]
[1754188806898,5.65861,3444.7,3444.6,0.402]
[1754188807104,6.09081,3444.7,3444.6,0.402]
[1754188812449,5.65861,3444.7,3444.6,0.402]
[1754188812618,6.09081,3444.7,3444.6,0.402]
[1754188820400,5.65861,3444.7,3444.6,0.402]
[1754188820987,5.20651,3444.7,3444.6,0.402]
[1754188821393,0.1448,3444.7,3444.6,0.402]
[1754188821709,4.6008,3444.7,3444.6,0.402]
[1754188821899,4.6008,3444.7,3444.6,1.274746]
[1754188822091,4.6008,3444.7,3444.6,0.402]
[1754188822294,4.6008,3444.7,3444.6,1.3071]
[1754188823079,4.6008,3444.7,3444.6,0.402]
[1754188824376,5.60694,3444.7,3444.6,0.402]
[1754188824611,6.03834,3444.7,3444.6,0.402]
[1754188827106,5.14974,3444.7,3444.6,0.402]
[1754188829386,5.60694,3444.7,3444.6,0.402]
[1754188832236,6.58834,3444.7,3444.6,0.402]
[1754188837415,6.58734,3444.7,3444.6,0.402]
[1754188841752,6.15594,3444.7,3444.6,0.402]
[1754188847855,6.58734,3444.7,3444.6,0.402]
[1754188849631,6.15594,3444.7,3444.6,0.402]
[1754188854042,6.58594,3444.7,3444.6,0.402]
[1754188856135,6.15594,3444.7,3444.6,0.402]
[1754188856356,6.58594,3444.7,3444.6,0.402]
[1754188860530,0.001,3445.1,3444.6,1.3257]
[1754188860756,0.1448,3444.7,3444.6,1.3257]
[1754188860945,4.5968,3444.7,3444.6,1.3257]
[1754188862145,4.5968,3444.7,3444.6,0.402]
[1754188862350,5.5076,3444.7,3444.6,0.402]
[1754188862558,4.5968,3444.7,3444.6,0.402]
[1754188864075,4.5968,3444.7,3444.6,1.3257]
[1754188864987,4.5968,3444.7,3444.6,0.402]
[1754188865395,5.09948,3444.7,3444.6,0.402]
[1754188865562,5.58028,3444.7,3444.6,0.402]
[1754188865921,5.09948,3444.7,3444.6,0.402]
[1754188866086,4.5968,3444.7,3444.6,0.402]
[1754188866396,0.1448,3444.7,3444.6,1.274886]
[1754188866566,4.5958,3444.7,3444.6,2.198586]
[1754188867890,4.451,3444.7,3444.6,2.198586]
[1754188868054,4.5958,3444.7,3444.6,2.198586]
[1754188871885,4.5958,3444.7,3444.6,1.274886]
[1754188872090,4.5958,3444.7,3444.6,1.719686]
[1754188872308,4.5958,3444.7,3444.6,2.198586]
[1754188873517,4.5948,3444.7,3444.6,2.198586]
[1754188874783,0.1448,3444.7,3444.6,1.274886]
[1754188875009,4.5948,3444.7,3444.6,2.198586]
[1754188875394,4.45,3444.9,3444.6,2.198586]
[1754188875709,4.45,3444.9,3444.8,13.14703797]
[1754188876006,4.45,3444.9,3444.8,14.07073797]
[1754188878316,4.45,3444.9,3444.8,14.94336997]
[1754188881909,0.001,3445.3,3444.9,3.0]
[1754188882117,0.001,3445.3,3445.2,10.14703797]
[1754188882478,0.001,3445.3,3445.2,11.05913797]
[1754188884118,0.001,3445.3,3445.2,11.93167197]
[1754188885696,0.001,3445.3,3445.2,12.14736593]
[1754188888682,0.001,3445.3,3445.2,11.23526593]
[1754188890487,0.001,3445.5,3445.2,15.14736593]
[1754188890710,4.447,3445.4,3445.3,3.9121]
[1754188891300,4.447,3445.4,3445.3,4.784616]
[1754188894325,4.447,3445.4,3445.3,4.327116]
[1754188895303,4.447,3445.4,3445.3,3.872516]
[1754188898127,4.926,3445.4,3445.3,3.872516]
[1754188898539,5.3836,3445.4,3445.3,3.872516]
[1754188901733,5.3836,3445.4,3445.3,0.872516]
[1754188902029,5.3836,3445.4,3444.6,3.402]
[1754188902322,1.50358993,3445.3,3444.6,3.402]
[1754188902527,0.56698993,3445.3,3444.9,0.872734]
[1754188902718,0.9366,3445.2,3444.9,0.872734]
[1754188902902,0.1448,3445.0,3444.9,0.872734]
[1754188903108,0.1448,3445.0,3444.9,11.01977197]
[1754188903295,1.0814,3445.0,3444.9,0.872734]
[1754188906135,1.48934,3445.0,3444.6,0.402]